fUSD/lending_fUSD_20250930
["ID","MTS","AMOUNT","RATE_DAILY","PERIOD"]
[388599170,1759249858102,-990.39,0.00019178,2]
[388599171,1759249858111,-6705.33,0.00019178,2]
[388599173,1759249858121,-500.0,0.00019178,2]
[388599175,1759249858130,-500.0,0.00019178,2]
[388599177,1759249858140,-500.0,0.00019178,2]
[388599179,1759249858149,-423.712716,0.00019178,2]
[388599182,1759249858160,-3490.84,0.00019178,2]
[388599184,1759249858170,-423.712716,0.00019178,2]
[388599186,1759249858180,-500.0,0.00019178,2]
[388599188,1759249858190,-151.0,0.00019178,2]
[388599190,1759249858200,-151.0,0.00019178,2]
[388599192,1759249858209,-9519.14,0.00019178,2]
[388599194,1759249858219,-3267.71,0.00019178,2]
[388599196,1759249858227,-500.0,0.00019178,2]
[388599198,1759249858238,-151.0,0.00019178,2]
[388599200,1759249858247,-151.0,0.00019178,2]
[388599202,1759249858256,-2590.21,0.00019178,2]
[388599204,1759249858265,-5134.32,0.00019178,2]
[388599206,1759249858275,-1420.36,0.00019178,2]
[388599208,1759249858284,-500.0,0.00019178,2]
[388599210,1759249858294,-879.490278,0.00019178,2]
[388599212,1759249858303,-151.0,0.00019178,2]
[388599214,1759249858312,-879.490278,0.00019178,2]
[388599216,1759249858321,-151.0,0.00019178,2]
[388599218,1759249858331,-151.0,0.00019178,2]
[388599220,1759249858341,-202.971086,0.00019178,2]
[388599222,1759249858350,-151.0,0.00019178,2]
[388599224,1759249858359,-151.0,0.00019178,2]
[388599226,1759249858368,-2552.41,0.00019178,2]
[388599228,1759249858378,-2520.14,0.00019178,2]
[388599230,1759249858387,-879.490278,0.00019178,2]
[388599232,1759249858396,-500.0,0.00019178,2]
[388599234,1759249858406,-879.490278,0.00019178,2]
[388599236,1759249858416,-500.0,0.00019178,2]
[388599238,1759249858425,-500.0,0.00019178,2]
[388599240,1759249858434,-2115.059367,0.00019178,2]
[388599242,1759249858444,-151.0,0.00019178,2]
[388599244,1759249858453,-5894.74,0.00019178,2]
[388599246,1759249858463,-500.0,0.00019178,2]
[388599248,1759249858472,-2115.059367,0.00019178,2]
[388599250,1759249858481,-151.0,0.00019178,2]
[388599252,1759249858491,-151.0,0.00019178,2]
[388599254,1759249858500,-267.266365,0.00019178,2]
[388599256,1759249858509,-169.011587,0.00019178,2]
[388599258,1759249858518,-267.266365,0.00019178,2]
[388599260,1759249858527,-879.490278,0.00019178,2]
[388599262,1759249858536,-879.490278,0.00019178,2]
[388599264,1759249858545,-2115.059367,0.00019178,2]
[388599266,1759249858554,-151.0,0.00019178,2]
[388599268,1759249858564,-500.0,0.00019178,2]
[388599270,1759249858573,-2115.059367,0.00019178,2]
[388599272,1759249858582,-151.0,0.00019178,2]
[388599274,1759249858591,-500.0,0.00019178,2]
[388599276,1759249858601,-267.266365,0.00019178,2]
[388599278,1759249858609,-5606.8,0.00019178,2]
[388599280,1759249858622,-267.266365,0.00019178,2]
[388599282,1759249858631,-879.490278,0.00019178,2]
[388599284,1759249858640,-2115.059367,0.00019178,2]
[388599286,1759249858649,-879.490278,0.00019178,2]
[388599288,1759249858658,-2115.059367,0.00019178,2]
[388599290,1759249858669,-561.83,0.00019178,2]
[388599292,1759249858678,-267.266365,0.00019178,2]
[388599294,1759249858687,-500.0,0.00019178,2]
[388599296,1759249858697,-151.0,0.00019178,2]
[388599298,1759249858706,-267.266365,0.00019178,2]
[388599300,1759249858715,-500.0,0.00019178,2]
[388599302,1759249858724,-151.0,0.00019178,2]
[388599304,1759249858733,-2115.059367,0.00019178,2]
[388599306,1759249858742,-500.0,0.00019178,2]
[388599308,1759249858751,-2115.059367,0.00019178,2]
[388599310,1759249858761,-153.011882,0.00019178,2]
[388599312,1759249858771,-153.011882,0.00019178,2]
[388599314,1759249858780,-6286.35,0.00019178,2]
[388599316,1759249858789,-267.266365,0.00019178,2]
[388599318,1759249858799,-500.0,0.00019178,2]
[388599320,1759249858808,-267.266365,0.00019178,2]
[388599322,1759249858819,-1059.48,0.00019178,2]
[388599324,1759249858828,-500.0,0.00019178,2]
[388599326,1759249858838,-153.011882,0.00019178,2]
[388599329,1759249858849,-500.0,0.00019178,2]
[388599331,1759249858858,-153.011882,0.00019178,2]
[388599332,1759249858868,-6708.91,0.00019178,2]
[388599335,1759249858889,-500.0,0.00019178,2]
[388599337,1759249858905,-2695.83,0.00019178,2]
[388599339,1759249858914,-500.0,0.00019178,2]
[388599340,1759249858923,-5473.27,0.00019178,2]
[388599343,1759249858933,-151.0,0.00019178,2]
[388599345,1759249858943,-151.0,0.00019178,2]
[388599347,1759249858953,-153.011882,0.00019178,2]
[388599349,1759249858962,-153.011882,0.00019178,2]
[388599351,1759249858972,-2604.95,0.00019178,2]
[388599353,1759249858982,-2431.63,0.00019178,2]
[388599355,1759249858991,-500.0,0.00019178,2]
[388599357,1759249859000,-4523.18,0.00019178,2]
[388599359,1759249859010,-787.31,0.00019178,2]
[388599361,1759249859020,-153.011882,0.00019178,2]
[388599363,1759249859029,-296.703193,0.00019178,2]
[388599365,1759249859039,-153.011882,0.00019178,2]
[388599367,1759249859048,-296.703193,0.00019178,2]
[388599369,1759249859058,-384.787376,0.00019178,2]
[388599371,1759249859067,-618.582831,0.00019178,2]
[388599373,1759249859077,-500.0,0.00019178,2]
[388599375,1759249859085,-151.0,0.00019178,2]
[388599377,1759249859095,-618.582831,0.00019178,2]
[388599379,1759249859104,-500.0,0.00019178,2]
[388599381,1759249859113,-151.0,0.00019178,2]
[388599383,1759249859122,-384.787376,0.00019178,2]
[388599385,1759249859131,-296.703193,0.00019178,2]
[388599387,1759249859140,-296.703193,0.00019178,2]
[388599389,1759249859149,-500.0,0.00019178,2]
[388599391,1759249859158,-618.582831,0.00019178,2]
[388599393,1759249859167,-151.0,0.00019178,2]
[388599395,1759249859177,-618.582831,0.00019178,2]
[388599397,1759249859186,-384.787376,0.00019178,2]
[388599399,1759249859196,-920.05,0.00019178,2]
[388599401,1759249859206,-384.787376,0.00019178,2]
[388599403,1759249859215,-296.703193,0.00019178,2]
[388599405,1759249859224,-151.0,0.00019178,2]
[388599407,1759249859233,-641.46,0.00019178,2]
[388599409,1759249859243,-296.703193,0.00019178,2]
[388599411,1759249859253,-500.0,0.00019178,2]
[388599413,1759249859262,-500.0,0.00019178,2]
[388599415,1759249859271,-500.0,0.00019178,2]
[388599417,1759249859280,-618.582831,0.00019178,2]
[388599419,1759249859289,-384.787376,0.00019178,2]
[388599421,1759249859298,-618.582831,0.00019178,2]
[388599423,1759249859307,-384.787376,0.00019178,2]
[388599425,1759249859316,-189.514981,0.00019178,2]
[388599427,1759249859325,-296.703193,0.00019178,2]
[388599429,1759249859335,-642.948477,0.00019178,2]
[388599431,1759249859344,-4879.63,0.00019178,2]
[388599433,1759249859353,-296.703193,0.00019178,2]
[388599435,1759249859362,-642.948477,0.00019178,2]
[388599437,1759249859371,-151.0,0.00019178,2]
[388599438,1759249859381,-618.582831,0.00019178,2]
[388599439,1759249859390,-151.0,0.00019178,2]
[388599440,1759249859399,-384.787376,0.00019178,2]
[388599441,1759249859408,-500.0,0.00019178,2]
[388599442,1759249859417,-4194.63,0.00019178,2]
[388599443,1759249859426,-618.582831,0.00019178,2]
[388599444,1759249859435,-500.0,0.00019178,2]
[388599445,1759249859444,-384.787376,0.00019178,2]
[388599446,1759249859454,-500.0,0.00019178,2]
[388599447,1759249859464,-642.948477,0.00019178,2]
[388599448,1759249859473,-1005.43,0.00019178,2]
[388599450,1759249859484,-500.0,0.00019178,2]
[388599452,1759249859493,-642.948477,0.00019178,2]
[388599454,1759249859503,-3540.49,0.00019178,2]
[388599456,1759249859512,-3236.42,0.00019178,2]
[388599458,1759249859521,-500.0,0.00019178,2]
[388599460,1759249859530,-154.056326,0.00019178,2]
[388599462,1759249859539,-500.0,0.00019178,2]
[388599464,1759249859548,-1700.98,0.00019178,2]
[388599466,1759249859557,-642.948477,0.00019178,2]
[388599468,1759249859567,-642.948477,0.00019178,2]
[388599470,1759249859576,-804.6,0.00019178,2]
[388599472,1759249859584,-642.948477,0.00019178,2]
[388599474,1759249859594,-1154.17,0.00019178,2]
[388599476,1759249859603,-151.0,0.00019178,2]
[388599478,1759249859612,-500.0,0.00019178,2]
[388599480,1759249859621,-1234.03,0.00019178,2]
[388599482,1759249859630,-642.948477,0.00019178,2]
[388599484,1759249859640,-151.0,0.00019178,2]
[388599486,1759249859649,-500.0,0.00019178,2]
[388599488,1759249859659,-5530.75,0.00019178,2]
[388599489,1759249859670,-500.0,0.00019178,2]
[388599491,1759249859679,-554.67,0.00019178,2]
[388599493,1759249859688,-151.000001,0.00019178,2]
[388599495,1759249859698,-337.639549,0.00019178,2]
[388599497,1759249859707,-873.29,0.00019178,2]
[388599499,1759249859716,-500.0,0.00019178,2]
[388599501,1759249859725,-500.0,0.00019178,2]
[388599503,1759249859734,-500.0,0.00019178,2]
[388599505,1759249859743,-500.0,0.00019178,2]
[388599507,1759249859752,-232.07071479,0.00019178,2]
[388599630,1759249860995,-151.0,0.00019177,2]
[388599632,1759249861006,-184.22410318,0.00019178,2]
[388599710,1759249861788,-636.924,0.000169,2]
[388599711,1759249861800,-1687.55785265,0.000169,2]
[388599712,1759249861812,-175.51814735,0.000169,2]
[388599713,1759249861822,-169.190461,0.00019177,2]
[388599714,1759249861831,-34.55228871,0.00019177,2]
[388599716,1759249861847,-116.44771129,0.00019177,2]
[388599718,1759249861857,-83.70518203,0.00019178,2]
[388599720,1759249861867,-228.387763,0.00019178,2]
[388599722,1759249861879,-116.36718011,0.00019178,2]
[388599728,1759249861928,-151.0,0.00019177,2]
[388599730,1759249861938,-112.02058289,0.00019178,2]
[388599732,1759249861949,-1591.6,0.00019178,2]
[388599734,1759249861959,-228.387763,0.00019178,2]
[388599736,1759249861969,-500.0,0.00019178,2]
[388599738,1759249861978,-228.387763,0.00019178,2]
[388599740,1759249861987,-3984.23,0.00019178,2]
[388599742,1759249861996,-500.0,0.00019178,2]
[388599744,1759249862005,-2844.92,0.00019178,2]
[388599746,1759249862015,-518.30469885,0.00019178,2]
[388599752,1759249862058,-379.19530115,0.00019178,2]
[388599754,1759249862068,-103.06404162,0.00019178,2]
[388599756,1759249862079,-1519.89595838,0.00019178,2]
[388599758,1759249862088,-228.387763,0.00019178,2]
[388599760,1759249862099,-228.387763,0.00019178,2]
[388599762,1759249862109,-500.0,0.00019178,2]
[388599764,1759249862118,-1996.98,0.00019178,2]
[388599766,1759249862127,-2716.66,0.00019178,2]
[388599768,1759249862136,-228.387763,0.00019178,2]
[388599770,1759249862146,-722.29,0.00019178,2]
[388599772,1759249862155,-228.387763,0.00019178,2]
[388599774,1759249862164,-500.0,0.00019178,2]
[388599776,1759249862173,-500.0,0.00019178,2]
[388599778,1759249862183,-500.0,0.00019178,2]
[388599781,1759249862195,-3575.61,0.00019178,2]
[388599782,1759249862204,-1976.67,0.00019178,2]
[388599784,1759249862213,-6608.91,0.00019178,2]
[388599786,1759249862223,-3945.26,0.00019178,2]
[388599788,1759249862232,-509.08,0.00019178,2]
[388599790,1759249862241,-500.0,0.00019178,2]
[388599792,1759249862251,-3577.65,0.00019178,2]
[388599795,1759249862260,-500.0,0.00019178,2]
[388599796,1759249862269,-500.0,0.00019178,2]
[388599799,1759249862279,-500.0,0.00019178,2]
[388599801,1759249862290,-500.0,0.00019178,2]
[388599803,1759249862300,-500.0,0.00019178,2]
[388599805,1759249862309,-500.0,0.00019178,2]
[388599807,1759249862318,-4232.55,0.00019178,2]
[388599809,1759249862327,-18492.31,0.00019178,2]
[388599810,1759249862337,-1981.86,0.00019178,2]
[388599812,1759249862347,-1098.62,0.00019178,2]
[388599813,1759249862357,-3409.49,0.00019178,2]
[388599814,1759249862366,-3382.54,0.00019178,2]
[388599815,1759249862376,-500.0,0.00019178,2]
[388599816,1759249862385,-6032.75,0.00019178,2]
[388599817,1759249862395,-500.0,0.00019178,2]
[388599819,1759249862405,-579.65,0.00019178,2]
[388599820,1759249862415,-1822.02,0.00019178,2]
[388599821,1759249862424,-672.7,0.00019178,2]
[388599822,1759249862434,-7050.99,0.00019178,2]
[388599823,1759249862445,-500.0,0.00019178,2]
[388599824,1759249862463,-3703.76,0.00019178,2]
[388599825,1759249862483,-934.85,0.00019178,2]
[388599826,1759249862504,-177.377123,0.00019178,2]
[388599827,1759249862524,-500.0,0.00019178,2]
[388599828,1759249862539,-500.0,0.00019178,2]
[388599829,1759249862548,-177.377123,0.00019178,2]
[388599830,1759249862559,-500.0,0.00019178,2]
[388599831,1759249862569,-177.377123,0.00019178,2]
[388599832,1759249862578,-158.614346,0.00019178,2]
[388599833,1759249862587,-500.0,0.00019178,2]
[388599834,1759249862596,-500.0,0.00019178,2]
[388599835,1759249862605,-177.377123,0.00019178,2]
[388599836,1759249862615,-158.614346,0.00019178,2]
[388599837,1759249862624,-500.0,0.00019178,2]
[388599838,1759249862634,-500.0,0.00019178,2]
[388599839,1759249862643,-158.614346,0.00019178,2]
[388599840,1759249862653,-177.377123,0.00019178,2]
[388599841,1759249862662,-1106.5,0.00019178,2]
[388599842,1759249862671,-158.614346,0.00019178,2]
[388599843,1759249862681,-177.377123,0.00019178,2]
[388599844,1759249862690,-3235.16,0.00019178,2]
[388599845,1759249862702,-500.0,0.00019178,2]
[388599846,1759249862711,-579.73,0.00019178,2]
[388599847,1759249862720,-3668.68,0.00019178,2]
[388599848,1759249862729,-158.614346,0.00019178,2]
[388599849,1759249862737,-1429.01,0.00019178,2]
[388599850,1759249862747,-177.377123,0.00019178,2]
[388599851,1759249862756,-158.614346,0.00019178,2]
[388599852,1759249862765,-177.377123,0.00019178,2]
[388599853,1759249862775,-500.0,0.00019178,2]
[388599854,1759249862784,-502.0,0.00019178,2]
[388599855,1759249862793,-500.0,0.00019178,2]
[388599856,1759249862803,-3522.9,0.00019178,2]
[388599857,1759249862812,-759.94976443,0.00019178,2]
[388599858,1759249862822,-519.0,0.00019178,2]
[388599859,1759249862831,-543.0,0.00019178,2]
[388599860,1759249862840,-158.614346,0.00019178,2]
[388599861,1759249862851,-158.614346,0.00019178,2]
[388599862,1759249862861,-500.0,0.00019178,2]
[388599863,1759249862870,-500.0,0.00019178,2]
[388599864,1759249862884,-500.0,0.00019178,2]
[388599865,1759249862894,-500.0,0.00019178,2]
[388599866,1759249862903,-702.82,0.00019178,2]
[388599867,1759249862915,-500.0,0.00019178,2]
[388599868,1759249862928,-879.582333,0.00019178,2]
[388599869,1759249862938,-151.0,0.00019178,2]
[388599870,1759249862952,-500.0,0.00019178,2]
[388599871,1759249862961,-151.0,0.00019178,2]
[388599872,1759249862971,-500.0,0.00019178,2]
[388599873,1759249862980,-879.582333,0.00019178,2]
[388599874,1759249862991,-151.0,0.00019178,2]
[388599875,1759249863000,-151.0,0.00019178,2]
[388599876,1759249863011,-500.0,0.00019178,2]
[388599877,1759249863020,-7808.12,0.00019178,2]
[388599878,1759249863030,-1114.25,0.00019178,2]
[388599879,1759249863040,-692.508169,0.00019178,2]
[388599880,1759249863049,-500.0,0.00019178,2]
[388599881,1759249863059,-500.0,0.00019178,2]
[388599882,1759249863068,-879.582333,0.00019178,2]
[388599883,1759249863077,-1583.8,0.00019178,2]
[388599884,1759249863086,-692.508169,0.00019178,2]
[388599885,1759249863096,-500.0,0.00019178,2]
[388599886,1759249863105,-879.582333,0.00019178,2]
[388599887,1759249863115,-500.0,0.00019178,2]
[388599888,1759249863125,-3675.089856,0.00019178,2]
[388599889,1759249863135,-151.0,0.00019178,2]
[388599890,1759249863144,-3675.089856,0.00019178,2]
[388599891,1759249863592,-151.0,0.00019178,2]
[388599892,1759249863604,-692.508169,0.00019178,2]
[388599893,1759249863614,-3579.81,0.00019178,2]
[388599894,1759249863624,-151.0,0.00019178,2]
[388599895,1759249863634,-692.508169,0.00019178,2]
[388599896,1759249863644,-500.0,0.00019178,2]
[388599897,1759249863654,-879.582333,0.00019178,2]
[388599898,1759249863664,-151.0,0.00019178,2]
[388599899,1759249863674,-151.0,0.00019178,2]
[388599900,1759249863683,-642.68,0.00019178,2]
[388599901,1759249863693,-879.582333,0.00019178,2]
[388599902,1759249863703,-500.0,0.00019178,2]
[388599903,1759249863712,-151.0,0.00019178,2]
[388599904,1759249863722,-541.28,0.00019178,2]
[388599905,1759249863731,-3675.089856,0.00019178,2]
[388599906,1759249863742,-500.0,0.00019178,2]
[388599907,1759249863751,-568.709281,0.00019178,2]
[388599908,1759249863761,-500.0,0.00019178,2]
[388599909,1759249863771,-151.0,0.00019178,2]
[388599910,1759249863781,-151.0,0.00019178,2]
[388599911,1759249863791,-6781.75,0.00019178,2]
[388599912,1759249863801,-3675.089856,0.00019178,2]
[388599913,1759249863810,-151.0,0.00019178,2]
[388599914,1759249863820,-568.709281,0.00019178,2]
[388599915,1759249863832,-151.0,0.00019178,2]
[388599916,1759249863842,-692.508169,0.00019178,2]
[388599917,1759249863852,-19632.03,0.00019178,2]
[388599918,1759249863862,-692.508169,0.00019178,2]
[388599919,1759249863876,-151.0,0.00019178,2]
[388599920,1759249863890,-500.0,0.00019178,2]
[388599921,1759249863900,-3675.089856,0.00019178,2]
[388599922,1759249863910,-151.0,0.00019178,2]
[388599923,1759249863921,-568.709281,0.00019178,2]
[388599924,1759249863931,-879.582333,0.00019178,2]
[388599925,1759249863940,-500.0,0.00019178,2]
[388599926,1759249863953,-3675.089856,0.00019178,2]
[388599927,1759249863962,-500.0,0.00019178,2]
[388599928,1759249863972,-500.0,0.00019178,2]
[388599929,1759249863981,-568.709281,0.00019178,2]
[388599930,1759249863991,-879.582333,0.00019178,2]
[388599931,1759249864001,-536.8,0.00019178,2]
[388599932,1759249864011,-151.0,0.00019178,2]
[388599933,1759249864021,-692.508169,0.00019178,2]
[388599934,1759249864031,-151.0,0.00019178,2]
[388599935,1759249864041,-151.0,0.00019178,2]
[388599936,1759249864051,-692.508169,0.00019178,2]
[388599937,1759249864060,-1694.24,0.00019178,2]
[388599938,1759249864070,-151.0,0.00019178,2]
[388599939,1759249864079,-3675.089856,0.00019178,2]
[388599940,1759249864089,-3675.089856,0.00019178,2]
[388599941,1759249864098,-540.91,0.00019178,2]
[388599942,1759249864108,-626.72,0.00019178,2]
[388599943,1759249864117,-500.0,0.00019178,2]
[388599944,1759249864127,-568.709281,0.00019178,2]
[388599945,1759249864136,-151.0,0.00019178,2]
[388599946,1759249864146,-500.0,0.00019178,2]
[388599947,1759249864156,-568.709281,0.00019178,2]
[388599948,1759249864165,-4306.929964,0.00019178,2]
[388599949,1759249864175,-151.0,0.00019178,2]
[388599950,1759249864185,-500.0,0.00019178,2]
[388599951,1759249864196,-500.0,0.00019178,2]
[388599952,1759249864206,-169.190461,0.00019178,2]
[388599953,1759249864216,-500.0,0.00019178,2]
[388599954,1759249864226,-169.190461,0.00019178,2]
[388599955,1759249864235,-1539.47,0.00019178,2]
[388599956,1759249864245,-4900.65,0.00019178,2]
[388599957,1759249864257,-708.33,0.00019178,2]
[388599958,1759249864267,-500.0,0.00019178,2]
[388599959,1759249864277,-5285.54,0.00019178,2]
[388599960,1759249864286,-708.33,0.00019178,2]
[388599961,1759249864296,-500.0,0.00019178,2]
[388599962,1759249864306,-2355.82,0.00019178,2]
[388599963,1759249864315,-500.0,0.00019178,2]
[388599964,1759249864325,-151.0,0.00019178,2]
[388599965,1759249864334,-556.82,0.00019178,2]
[388599966,1759249864344,-708.33,0.00019178,2]
[388599967,1759249864358,-568.709281,0.00019178,2]
[388599968,1759249864368,-151.0,0.00019178,2]
[388599969,1759249864377,-708.33,0.00019178,2]
[388599970,1759249864388,-151.0,0.00019178,2]
[388599971,1759249864398,-568.709281,0.00019178,2]
[388599972,1759249864408,-708.33,0.00019178,2]
[388599973,1759249864417,-169.190461,0.00019178,2]
[388599974,1759249864426,-708.33,0.00019178,2]
[388599975,1759249864435,-169.190461,0.00019178,2]
[388599976,1759249864445,-708.33,0.00019178,2]
[388599977,1759249864455,-751.6,0.00019178,2]
[388599978,1759249864464,-708.33,0.00019178,2]
[388599979,1759249864473,-708.33,0.00019178,2]
[388599980,1759249864484,-500.0,0.00019178,2]
[388599981,1759249864494,-151.0,0.00019178,2]
[388599982,1759249864503,-3312.17,0.00019178,2]
[388599983,1759249864512,-708.33,0.00019178,2]
[388599984,1759249864522,-708.33,0.00019178,2]
[388599985,1759249864531,-151.0,0.00019178,2]
[388599986,1759249864540,-169.190461,0.00019178,2]
[388599987,1759249864550,-708.33,0.00019178,2]
[388599988,1759249864559,-500.0,0.00019178,2]
[388599989,1759249864568,-169.190461,0.00019178,2]
[388599990,1759249864577,-708.33,0.00019178,2]
[388599991,1759249864586,-151.0,0.00019178,2]
[388599992,1759249864596,-708.33,0.00019178,2]
[388599993,1759249864605,-151.0,0.00019178,2]
[388599994,1759249864614,-708.33,0.00019178,2]
[388599995,1759249864623,-732.63,0.00019178,2]
[388599996,1759249864632,-708.33,0.00019178,2]
[388599997,1759249864642,-3856.95,0.00019178,2]
[388599998,1759249864651,-151.0,0.00019178,2]
[388599999,1759249864660,-5000.0,0.00019178,2]
[388600000,1759249864669,-151.16,0.00019178,2]
[388600001,1759249864678,-151.15,0.00019178,2]
[388600002,1759249864688,-151.01,0.00019178,2]
[388600003,1759249864699,-150.82,0.00019178,2]
[388600004,1759249864708,-1130.88924,0.0001919,2]
[388600005,1759249864718,-1305.01417658,0.000192,2]
[388600006,1759249864727,-300.0,0.00019203,2]
[388600007,1759249864737,-1305.01417658,0.00019261,2]
[388600008,1759249864746,-33099.99,0.000193,2]
[388600009,1759249864756,-473.55,0.00019315,2]
[388600010,1759249864766,-1305.01417658,0.00019322,2]
[388600011,1759249864775,-884.62987618,0.00019332,2]
[388600012,1759249864784,-678.28,0.00019338,2]
[388600013,1759249864794,-1649.39902313,0.00019352,2]
[388600014,1759249864803,-1305.01417658,0.00019382,2]
[388600015,1759249864813,-1216.10164,0.0001939,2]
[388600016,1759249864822,-23513.79334806,0.000194,2]
[388600017,1759249864832,-894133.35916629,0.000194,3]
[388600018,1759249864842,-153.142515,0.000194,2]
[388600019,1759249864851,-153.142515,0.000194,2]
[388600020,1759249864861,-153.142515,0.000194,2]
[388600021,1759249864873,-277.412378,0.000194,2]
[388600022,1759249864886,-153.142515,0.000194,2]
[388600023,1759249864897,-277.412378,0.000194,2]
[388600024,1759249864906,-151.0,0.000194,2]
[388600025,1759249864918,-277.412378,0.000194,2]
[388600026,1759249864927,-151.0,0.000194,2]
[388600027,1759249864936,-277.412378,0.000194,2]
[388600028,1759249864945,-268.272902,0.000194,2]
[388600029,1759249864958,-268.272902,0.000194,2]
[388600030,1759249864968,-151.0,0.000194,2]
[388600031,1759249864978,-945.405985,0.000194,2]
[388600032,1759249864988,-268.272902,0.000194,2]
[388600033,1759249864997,-945.405985,0.000194,2]
[388600034,1759249865007,-268.272902,0.000194,2]
[388600035,1759249865017,-945.405985,0.000194,2]
[388600036,1759249865029,-945.405985,0.000194,2]
[388600037,1759249865040,-151.0,0.000194,2]
[388600038,1759249865049,-151.0,0.000194,2]
[388600039,1759249865059,-448.185677,0.000194,2]
[388600040,1759249865069,-151.0,0.000194,2]
[388600041,1759249865079,-448.185677,0.000194,2]
[388600042,1759249865089,-151.0,0.000194,2]
[388600043,1759249865098,-820.21943,0.000194,2]
[388600044,1759249865108,-448.185677,0.000194,2]
[388600045,1759249865118,-820.21943,0.000194,2]
[388600046,1759249865128,-448.185677,0.000194,2]
[388600047,1759249865138,-151.0,0.000194,2]
[388600048,1759249865147,-820.21943,0.000194,2]
[388600049,1759249865156,-151.0,0.000194,2]
[388600050,1759249865166,-151.0,0.000194,2]
[388600051,1759249865176,-151.0,0.000194,2]
[388600052,1759249865186,-151.0,0.000194,2]
[388600053,1759249865196,-820.21943,0.000194,2]
[388600054,1759249865205,-151.0,0.000194,2]
[388600055,1759249865215,-157.40575,0.000194,2]
[388600056,1759249865225,-151.0,0.000194,2]
[388600057,1759249865234,-151.0,0.000194,2]
[388600058,1759249865243,-197.930678,0.000194,2]
[388600059,1759249865253,-151.0,0.000194,2]
[388600060,1759249865263,-197.930678,0.000194,2]
[388600061,1759249865272,-151.0,0.000194,2]
[388600062,1759249865281,-197.930678,0.000194,2]
[388600063,1759249865291,-173.304434,0.000194,2]
[388600064,1759249865300,-151.0,0.000194,2]
[388600065,1759249865309,-197.930678,0.000194,2]
[388600066,1759249865318,-173.304434,0.000194,2]
[388600067,1759249865327,-173.304434,0.000194,2]
[388600068,1759249865337,-173.304434,0.000194,2]
[388600069,1759249865346,-151.0,0.000194,2]
[388600070,1759249865355,-196.706234,0.000194,2]
[388600071,1759249865365,-196.706234,0.000194,2]
[388600072,1759249865375,-1070.829124,0.000194,2]
[388600073,1759249865384,-151.0,0.000194,2]
[388600074,1759249865393,-196.706234,0.000194,2]
[388600075,1759249865402,-151.0,0.000194,2]
[388600076,1759249865411,-151.0,0.000194,2]
[388600077,1759249865420,-196.706234,0.000194,2]
[388600078,1759249865429,-1070.829124,0.000194,2]
[388600079,1759249865439,-191.349283,0.000194,2]
[388600080,1759249865448,-151.0,0.000194,2]
[388600081,1759249865457,-1070.829124,0.000194,2]
[388600082,1759249865466,-191.349283,0.000194,2]
[388600083,1759249865475,-1070.829124,0.000194,2]
[388600084,1759249865485,-191.349283,0.000194,2]
[388600085,1759249865494,-191.349283,0.000194,2]
[388600086,1759249865504,-151.0,0.000194,2]